[Event "IV Elllobregat Open Chess Tmnt"]
[Site "Sant Boi de Llobregat, Spain"]
[Date "2023.12.01"]
[Round "2.23"]
[White "Raja, Rithvik R"]
[Black "Fiorito, Francisco"]
[Result "1-0"]
[TimeControl "90min/40moves + 15min/end + 30sec from move 1"]
[WhiteFideId "35007394"]
[BlackFideId "180165"]
[WhiteElo "2495"]
[BlackElo "2370"]

1. d4 {[%clk 01:23:54]} {[%emt 00:05:12]} d5 {[%clk 01:30:51]} {[%emt
00:00:09]} 2. c4 {[%clk 01:24:14]} {[%emt 00:00:12]} dxc4 {[%clk 01:31:15]}
{[%emt 00:00:05]} 3. Nf3 {[%clk 01:24:34]} {[%emt 00:00:10]} Nf6 {[%clk
01:31:39]} {[%emt 00:00:05]} 4. e3 {[%clk 01:24:59]} {[%emt 00:00:06]} e6
{[%clk 01:32:04]} {[%emt 00:00:05]} 5. Bxc4 {[%clk 01:25:22]} {[%emt 00:00:07]}
c5 {[%clk 01:32:29]} {[%emt 00:00:05]} 6. O-O {[%clk 01:25:45]} {[%emt
00:00:07]} a6 {[%clk 01:32:56]} {[%emt 00:00:04]} 7. Nbd2 {[%clk 01:26:12]}
{[%emt 00:00:03]} b5 {[%clk 01:29:53]} {[%emt 00:03:33]} 8. Be2 {[%clk
01:26:10]} {[%emt 00:00:32]} Bb7 {[%clk 01:28:49]} {[%emt 00:01:35]} 9. a4
{[%clk 01:26:34]} {[%emt 00:00:06]} b4 {[%clk 01:25:07]} {[%emt 00:04:11]} 10.
Nb3 {[%clk 01:26:50]} {[%emt 00:00:14]} Nbd7 {[%clk 01:24:15]} {[%emt
00:01:22]} 11. Bd2 {[%clk 01:18:11]} {[%emt 00:09:09]} Ne4 {[%clk 01:15:51]}
{[%emt 00:08:54]} 12. Rc1 {[%clk 01:13:47]} {[%emt 00:04:54]} cxd4 {[%clk
01:13:56]} {[%emt 00:02:25]} 13. Nfxd4 {[%clk 01:08:42]} {[%emt 00:05:35]} Rc8
{[%clk 01:05:39]} {[%emt 00:08:47]} 14. Rxc8 {[%clk 01:01:19]} {[%emt
00:07:53]} Qxc8 {[%clk 01:05:58]} {[%emt 00:00:10]} 15. Be1 {[%clk 01:01:42]}
{[%emt 00:00:07]} Be7 {[%clk 01:04:28]} {[%emt 00:02:00]} 16. f3 {[%clk
00:58:41]} {[%emt 00:03:32]} Nef6 {[%clk 01:04:08]} {[%emt 00:00:50]} 17. Bg3
{[%clk 00:52:30]} {[%emt 00:06:41]} Nd5 {[%clk 00:48:18]} {[%emt 00:16:20]} 18.
Qd2 {[%clk 00:45:22]} {[%emt 00:07:39]} Bg5 {[%clk 00:48:19]} {[%emt 00:00:28]}
19. f4 {[%clk 00:45:31]} {[%emt 00:00:22]} Bd8 {[%clk 00:46:07]} {[%emt
00:02:42]} 20. Bf3 {[%clk 00:35:23]} {[%emt 00:10:38]} O-O {[%clk 00:43:23]}
{[%emt 00:03:14]} 21. e4 {[%clk 00:33:20]} {[%emt 00:02:33]} N5f6 {[%clk
00:43:24]} {[%emt 00:00:29]} 22. e5 {[%clk 00:33:01]} {[%emt 00:00:49]} Nd5
{[%clk 00:42:37]} {[%emt 00:01:17]} 23. Rc1 {[%clk 00:30:57]} {[%emt 00:02:34]}
Qa8 {[%clk 00:42:55]} {[%emt 00:00:12]} 24. f5 {[%clk 00:29:53]} {[%emt
00:01:35]} Re8 {[%clk 00:38:53]} {[%emt 00:04:31]} 25. fxe6 {[%clk 00:24:49]}
{[%emt 00:05:34]} fxe6 {[%clk 00:39:17]} {[%emt 00:00:06]} 26. a5 {[%clk
00:23:27]} {[%emt 00:01:51]} Kh8 {[%clk 00:35:30]} {[%emt 00:04:16]} 27. Rd1
{[%clk 00:17:37]} {[%emt 00:06:20]} Nf8 {[%clk 00:33:30]} {[%emt 00:02:30]} 28.
Nxe6 {[%clk 00:16:12]} {[%emt 00:01:56]} Nxe6 {[%clk 00:33:41]} {[%emt
00:00:19]} 29. Bxd5 {[%clk 00:16:37]} {[%emt 00:00:05]} Bg5 {[%clk 00:33:54]}
{[%emt 00:00:17]} 30. Bxb7 {[%clk 00:17:04]} {[%emt 00:00:03]} Qxb7 {[%clk
00:33:54]} {[%emt 00:00:30]} 31. Qd5 {[%clk 00:12:56]} {[%emt 00:04:38]} Qa7+
{[%clk 00:33:39]} {[%emt 00:00:45]} 32. Bf2 {[%clk 00:11:50]} {[%emt 00:01:35]}
Qf7 {[%clk 00:31:09]} {[%emt 00:03:00]} 33. Qc4 {[%clk 00:09:18]} {[%emt
00:03:02]} Qh5 {[%clk 00:30:47]} {[%emt 00:00:52]} 34. Re1 {[%clk 00:07:35]}
{[%emt 00:02:13]} Bf4 {[%clk 00:30:33]} {[%emt 00:00:44]} 35. h4 {[%clk
00:06:16]} {[%emt 00:01:49]} Qf5 {[%clk 00:28:07]} {[%emt 00:02:56]} 36. Qe4
{[%clk 00:04:45]} {[%emt 00:02:01]} Bh2+ {[%clk 00:26:36]} {[%emt 00:02:01]} 37.
Kxh2 {[%clk 00:05:13]} {[%emt 00:00:01]} Qxf2 {[%clk 00:27:05]} {[%emt
00:00:02]} 38. Re2 {[%clk 00:05:18]} {[%emt 00:00:25]} Qf1 {[%clk 00:26:35]}
{[%emt 00:01:00]} 39. Nd2 {[%clk 00:04:44]} {[%emt 00:01:03]} Qd1 {[%clk
00:26:25]} {[%emt 00:00:40]} 40. Nf3 {[%clk 00:18:30]} {[%emt 00:01:44]} Qa4
{[%clk 00:40:29]} {[%emt 00:01:26]} 41. Rd2 {[%clk 00:14:29]} {[%emt 00:04:32]}
Qxa5 {[%clk 00:38:11]} {[%emt 00:02:48]} 42. Qc6 {[%clk 00:14:27]} {[%emt
00:00:32]} Qb5 {[%clk 00:38:33]} {[%emt 00:00:08]} 43. Qxb5 {[%clk 00:14:52]}
{[%emt 00:00:05]} axb5 {[%clk 00:39:03]} {[%emt 00:00:01]} 44. Rd5 {[%clk
00:14:33]} {[%emt 00:00:49]} Rb8 {[%clk 00:38:34]} {[%emt 00:00:58]} 45. Rd6
{[%clk 00:14:11]} {[%emt 00:00:53]} Nf4 {[%clk 00:38:15]} {[%emt 00:00:48]} 46.
Rd4 {[%clk 00:10:54]} {[%emt 00:03:47]} Ne6 {[%clk 00:38:15]} {[%emt 00:00:30]}
47. Rxb4 {[%clk 00:10:39]} {[%emt 00:00:46]} Kg8 {[%clk 00:38:44]} 48. Kg3
{[%clk 00:10:32]} {[%emt 00:00:37]} Kf7 {[%clk 00:39:12]} {[%emt 00:00:02]} 49.
Kf2 {[%clk 00:10:34]} {[%emt 00:00:27]} Ke7 {[%clk 00:39:20]} {[%emt 00:00:22]}
50. Ke3 {[%clk 00:09:46]} {[%emt 00:01:19]} Nc7 {[%clk 00:39:19]} {[%emt
00:00:31]} 51. Rb3 {[%clk 00:08:10]} {[%emt 00:02:06]} Rb6 {[%clk 00:39:13]}
{[%emt 00:00:36]} 52. Nd4 {[%clk 00:08:10]} {[%emt 00:00:31]} g6 {[%clk
00:39:19]} {[%emt 00:00:24]} 53. Ke4 {[%clk 00:08:06]} {[%emt 00:00:34]} b4
{[%clk 00:39:14]} {[%emt 00:00:35]} 54. Rf3 {[%clk 00:07:27]} {[%emt 00:01:08]}
Ra6 {[%clk 00:38:15]} {[%emt 00:01:30]} 55. Rb3 {[%clk 00:06:35]} {[%emt
00:01:23]} Rb6 {[%clk 00:38:40]} {[%emt 00:00:05]} 56. g4 {[%clk 00:06:57]}
{[%emt 00:00:07]} Kd7 {[%clk 00:37:51]} {[%emt 00:01:19]} 57. Rf3 {[%clk
00:07:16]} {[%emt 00:00:11]} Ke7 {[%clk 00:38:16]} {[%emt 00:00:06]} 58. g5
{[%clk 00:07:23]} {[%emt 00:00:23]} Ne8 {[%clk 00:38:05]} {[%emt 00:00:40]} 59.
e6 {[%clk 00:05:57]} {[%emt 00:01:56]} Nd6+ {[%clk 00:37:44]} {[%emt 00:00:51]}
60. Kd5 {[%clk 00:06:20]} {[%emt 00:00:07]} Nf5 {[%clk 00:38:06]} {[%emt
00:00:08]} 61. Rxf5 {[%clk 00:05:06]} {[%emt 00:01:45]} gxf5 {[%clk 00:38:12]}
{[%emt 00:00:23]} 62. Nxf5+ {[%clk 00:05:32]} {[%emt 00:00:04]} Kd8 {[%clk
00:38:23]} {[%emt 00:00:19]} 63. Ke5 {[%clk 00:05:41]} {[%emt 00:00:22]} b3
{[%clk 00:38:24]} {[%emt 00:00:28]} 64. Kf6 {[%clk 00:06:02]} {[%emt 00:00:09]}
Ke8 {[%clk 00:38:50]} {[%emt 00:00:05]} 65. h5 {[%clk 00:06:20]} {[%emt
00:00:11]} Kf8 {[%clk 00:37:54]} {[%emt 00:01:26]} 66. g6 {[%clk 00:06:38]}
{[%emt 00:00:12]} Kg8 {[%clk 00:37:53]} {[%emt 00:00:30]} 67. Ne7+ {[%clk
00:06:59]} {[%emt 00:00:10]} 1-0

[Event "IV Elllobregat Open Chess Tmnt"]
[Site "Sant Boi de Llobregat, Spain"]
[Date "2023.12.01"]
[Round "2.24"]
[White "Rakhmatullaev, Almas"]
[Black "Madaminov, Mukhiddin"]
[Result "1-0"]
[TimeControl "90min/40moves + 15min/end + 30sec from move 1"]
[WhiteFideId "14205793"]
[BlackFideId "14210703"]
[WhiteElo "2383"]
[BlackElo "2494"]

1. e4 {[%clk 01:29:55]} {[%emt 00:01:02]} e5 {[%clk 01:29:06]} {[%emt
00:01:54]} 2. Nf3 {[%clk 01:29:57]} {[%emt 00:00:28]} Nf6 {[%clk 01:28:29]}
{[%emt 00:01:07]} 3. Nxe5 {[%clk 01:28:54]} {[%emt 00:01:34]} d6 {[%clk
01:28:43]} {[%emt 00:00:14]} 4. Nf3 {[%clk 01:29:15]} {[%emt 00:00:10]} Nxe4
{[%clk 01:28:59]} {[%emt 00:00:13]} 5. d4 {[%clk 01:28:59]} {[%emt 00:00:47]}
d5 {[%clk 01:29:10]} {[%emt 00:00:17]} 6. Bd3 {[%clk 01:29:10]} {[%emt
00:00:20]} Bd6 {[%clk 01:29:19]} {[%emt 00:00:19]} 7. O-O {[%clk 01:22:54]}
{[%emt 00:06:50]} O-O {[%clk 01:29:07]} {[%emt 00:00:40]} 8. Re1 {[%clk
01:21:34]} {[%emt 00:01:52]} Bf5 {[%clk 01:28:40]} {[%emt 00:00:55]} 9. c4
{[%clk 01:18:22]} {[%emt 00:03:44]} c6 {[%clk 01:28:56]} {[%emt 00:00:14]} 10.
Qb3 {[%clk 01:16:03]} {[%emt 00:02:50]} Qd7 {[%clk 01:26:21]} {[%emt 00:03:02]}
11. Nh4 {[%clk 01:08:41]} {[%emt 00:07:54]} Be6 {[%clk 01:17:30]} {[%emt
00:09:21]} 12. Qc2 {[%clk 01:04:15]} {[%emt 00:04:56]} Na6 {[%clk 01:17:23]}
{[%emt 00:00:38]} 13. a3 {[%clk 00:56:56]} {[%emt 00:07:49]} Rfe8 {[%clk
01:16:34]} {[%emt 00:01:17]} 14. Nd2 {[%clk 00:55:24]} {[%emt 00:02:02]} Nxd2
{[%clk 01:08:51]} {[%emt 00:08:13]} 15. Bxd2 {[%clk 00:47:09]} {[%emt
00:08:46]} dxc4 {[%clk 01:07:04]} {[%emt 00:02:18]} 16. Bxh7+ {[%clk 00:45:41]}
{[%emt 00:01:58]} Kh8 {[%clk 01:07:16]} {[%emt 00:00:17]} 17. Bf5 {[%clk
00:39:23]} {[%emt 00:06:48]} Bxf5 {[%clk 01:03:08]} {[%emt 00:04:38]} 18. Nxf5
{[%clk 00:39:37]} {[%emt 00:00:17]} Bf8 {[%clk 00:57:35]} {[%emt 00:06:03]} 19.
Re3 {[%clk 00:36:08]} {[%emt 00:03:58]} g6 {[%clk 00:46:11]} {[%emt 00:11:54]}
20. Rh3+ {[%clk 00:31:15]} {[%emt 00:05:24]} Kg8 {[%clk 00:46:34]} {[%emt
00:00:07]} 21. Nh6+ {[%clk 00:31:30]} {[%emt 00:00:15]} Bxh6 {[%clk 00:44:51]}
{[%emt 00:02:14]} 22. Rxh6 {[%clk 00:31:43]} {[%emt 00:00:16]} Re2 {[%clk
00:36:13]} {[%emt 00:09:08]} 23. Bg5 {[%clk 00:28:47]} {[%emt 00:03:26]} Qe6
{[%clk 00:32:16]} {[%emt 00:04:27]} 24. Qc3 {[%clk 00:22:18]} {[%emt 00:06:59]}
Qf5 {[%clk 00:24:16]} {[%emt 00:08:31]} 25. Qg3 {[%clk 00:21:33]} {[%emt
00:01:14]} Rae8 {[%clk 00:19:09]} {[%emt 00:05:37]} 26. h3 {[%clk 00:17:24]}
{[%emt 00:04:38]} R8e4 {[%clk 00:06:37]} {[%emt 00:13:03]} 27. f4 {[%clk
00:05:34]} {[%emt 00:12:20]} Rxd4 {[%clk 00:03:21]} {[%emt 00:03:47]} 28. Re1
{[%clk 00:03:44]} {[%emt 00:02:19]} Rd3 {[%clk 00:00:39]} {[%emt 00:03:12]} 29.
Qh4 {[%clk 00:03:16]} {[%emt 00:00:58]} Qc5+ {[%clk 00:00:32]} {[%emt
00:00:37]} 30. Kh2 {[%clk 00:02:57]} {[%emt 00:00:49]} Rxg2+ {[%clk 00:00:39]}
{[%emt 00:00:23]} 31. Kxg2 {[%clk 00:01:33]} {[%emt 00:01:54]} Qd5+ {[%clk
00:01:02]} {[%emt 00:00:07]} 32. Kg1 {[%clk 00:01:44]} {[%emt 00:00:18]} Qd4+
{[%clk 00:01:00]} {[%emt 00:00:33]} 33. Kf1 {[%clk 00:02:04]} {[%emt 00:00:09]}
Nc7 {[%clk 00:00:53]} {[%emt 00:00:38]} 34. Bf6 {[%clk 00:01:39]} {[%emt
00:00:54]} Rf3+ {[%clk 00:01:16]} {[%emt 00:00:07]} 35. Kg2 {[%clk 00:02:02]}
{[%emt 00:00:07]} Rf2+ {[%clk 00:01:42]} {[%emt 00:00:04]} 36. Kg3 {[%clk
00:01:36]} {[%emt 00:00:56]} 1-0

[Event "IV Elllobregat Open Chess Tmnt"]
[Site "Sant Boi de Llobregat, Spain"]
[Date "2023.12.01"]
[Round "2.25"]
[White "Velten, Paul"]
[Black "Van Dael, Siem"]
[Result "1-0"]
[TimeControl "90min/40moves + 15min/end + 30sec from move 1"]
[WhiteFideId "681091"]
[BlackFideId "1049771"]
[WhiteElo "2489"]
[BlackElo "2367"]

1. d4 {[%clk 01:30:45]} {[%emt 00:00:14]} Nf6 {[%clk 01:30:52]} {[%emt
00:00:09]} 2. c4 {[%clk 01:30:40]} {[%emt 00:00:34]} g6 {[%clk 01:31:09]}
{[%emt 00:00:13]} 3. Nc3 {[%clk 01:30:22]} {[%emt 00:00:48]} Bg7 {[%clk
01:31:30]} {[%emt 00:00:09]} 4. e4 {[%clk 01:29:20]} {[%emt 00:01:32]} d6
{[%clk 01:31:51]} {[%emt 00:00:09]} 5. h3 {[%clk 01:28:53]} {[%emt 00:00:57]}
e5 {[%clk 01:30:53]} {[%emt 00:01:28]} 6. d5 {[%clk 01:27:26]} {[%emt
00:01:56]} Na6 {[%clk 01:30:06]} {[%emt 00:01:18]} 7. Bd3 {[%clk 01:25:54]}
{[%emt 00:02:02]} Nc5 {[%clk 01:27:28]} {[%emt 00:03:07]} 8. Bc2 {[%clk
01:25:48]} {[%emt 00:00:37]} a5 {[%clk 01:27:42]} {[%emt 00:00:16]} 9. Bg5
{[%clk 01:25:07]} {[%emt 00:01:10]} h6 {[%clk 01:27:06]} {[%emt 00:01:07]} 10.
Be3 {[%clk 01:25:04]} {[%emt 00:00:33]} Nh5 {[%clk 01:25:47]} {[%emt 00:01:49]}
11. Nge2 {[%clk 01:19:16]} {[%emt 00:06:17]} Bf6 {[%clk 01:20:12]} {[%emt
00:06:06]} 12. g4 {[%clk 01:09:35]} {[%emt 00:10:10]} Nf4 {[%clk 01:20:32]}
{[%emt 00:00:10]} 13. Nxf4 {[%clk 01:06:17]} {[%emt 00:03:48]} exf4 {[%clk
01:20:55]} {[%emt 00:00:07]} 14. Bxf4 {[%clk 01:06:14]} {[%emt 00:00:34]} h5
{[%clk 01:20:05]} {[%emt 00:01:20]} 15. Rg1 {[%clk 01:05:22]} {[%emt 00:01:22]}
g5 {[%clk 01:14:08]} {[%emt 00:06:26]} 16. Be3 {[%clk 01:00:59]} {[%emt
00:04:52]} hxg4 {[%clk 01:12:17]} {[%emt 00:02:21]} 17. hxg4 {[%clk 00:51:04]}
{[%emt 00:06:32]} Rh3 18. Qe2 {[%emt 00:12:44]} Be5 {[%emt 00:02:15]} 19. O-O-O
{[%emt 00:02:31]} Qf6 {[%emt 00:02:58]} 20. Qd2 {[%emt 00:05:10]} Rxe3 {[%clk
00:57:30]} {[%emt 00:00:43]} 21. fxe3 {[%clk 00:45:33]} {[%emt 00:00:57]} Bd7
{[%clk 00:57:25]} 22. Rdf1 {[%clk 00:45:33]} Qg7 {[%clk 00:57:25]} {[%emt
00:02:29]} 23. Rg2 {[%emt 00:04:03]} a4 {[%emt 00:03:39]} 24. Rgf2 {[%emt
00:09:44]} a3 {[%emt 00:05:24]} 25. Kb1 {[%emt 00:01:57]} axb2 {[%emt
00:01:51]} 26. Ne2 {[%clk 00:35:13]} {[%emt 00:06:53]} f6 27. Rg1 {[%emt
00:09:41]} b5 {[%emt 00:01:42]} 28. cxb5 {[%emt 00:02:45]} Bxb5 {[%clk
00:26:10]} {[%emt 00:01:04]} 29. Nd4 {[%emt 00:02:46]} Bc4 {[%emt 00:00:32]} 30.
Qb4 {[%clk 00:32:48]} {[%emt 00:00:26]} Rxa2 {[%emt 00:02:42]} 31. Rfg2 {[%emt
00:23:55]} Ra1+ {[%emt 00:01:00]} 32. Kxb2 {[%clk 00:31:25]} {[%emt 00:00:15]}
Rxg1 {[%clk 00:00:36]} {[%emt 00:00:35]} 33. Rxg1 {[%clk 00:31:39]} {[%emt
00:00:16]} Bd3 {[%clk 00:00:32]} {[%emt 00:00:34]} 34. Qb8+ {[%clk 00:31:02]}
{[%emt 00:01:07]} Kf7 {[%clk 00:00:34]} {[%emt 00:00:27]} 35. Bxd3 {[%clk
00:29:49]} {[%emt 00:01:44]} Nxd3+ {[%clk 00:00:58]} {[%emt 00:00:07]} 36. Kc2
{[%emt 00:00:35]} Nc5 {[%emt 00:00:45]} 37. Nf5 {[%clk 00:29:54]} {[%emt
00:00:07]} Qh7 {[%emt 00:01:00]} 38. Rh1 {[%clk 00:29:45]} {[%emt 00:00:09]}
1-0

[Event "IV Elllobregat Open Chess Tmnt"]
[Site "Sant Boi de Llobregat, Spain"]
[Date "2023.12.01"]
[Round "2.26"]
[White "Begmuratov, Khumoyun"]
[Black "Koellner, Ruben Gideon"]
[Result "0-1"]
[TimeControl "90min/40moves + 15min/end + 30sec from move 1"]
[WhiteFideId "14210207"]
[BlackFideId "12993093"]
[WhiteElo "2371"]
[BlackElo "2488"]

1. e4 {[%clk 01:30:54]} {[%emt 00:00:04]} e5 {[%clk 01:30:47]} {[%emt
00:00:13]} 2. Nf3 {[%clk 01:31:12]} {[%emt 00:00:12]} Nc6 {[%clk 01:31:07]}
{[%emt 00:00:11]} 3. Bb5 {[%clk 01:31:24]} {[%emt 00:00:18]} a6 {[%clk
01:31:16]} {[%emt 00:00:21]} 4. Ba4 {[%clk 01:31:41]} {[%emt 00:00:14]} Nf6
{[%clk 01:31:37]} {[%emt 00:00:09]} 5. O-O {[%clk 01:25:59]} {[%emt 00:06:13]}
Bc5 {[%clk 01:31:54]} {[%emt 00:00:12]} 6. c3 {[%clk 01:22:56]} {[%emt
00:03:33]} b5 {[%clk 01:32:18]} {[%emt 00:00:06]} 7. Bb3 {[%clk 01:23:24]}
{[%emt 00:00:02]} d6 {[%clk 01:32:40]} {[%emt 00:00:07]} 8. d4 {[%clk
01:23:51]} {[%emt 00:00:03]} Bb6 {[%clk 01:33:01]} {[%emt 00:00:08]} 9. a4
{[%clk 01:24:09]} {[%emt 00:00:13]} Bg4 {[%clk 01:33:04]} {[%emt 00:00:26]} 10.
Bg5 {[%clk 01:24:33]} {[%emt 00:00:07]} Rb8 {[%clk 01:30:17]} {[%emt 00:03:17]}
11. axb5 {[%clk 01:08:06]} {[%emt 00:16:58]} axb5 {[%clk 01:30:44]} {[%emt
00:00:02]} 12. d5 {[%clk 01:04:49]} {[%emt 00:03:47]} Ne7 {[%clk 01:24:33]}
{[%emt 00:06:41]} 13. Qd3 {[%clk 01:00:34]} {[%emt 00:04:44]} Ng6 {[%clk
01:07:32]} {[%emt 00:17:31]} 14. Nbd2 {[%clk 00:40:33]} {[%emt 00:20:32]} h6
{[%clk 01:01:54]} {[%emt 00:06:08]} 15. Be3 {[%clk 00:40:17]} {[%emt 00:00:46]}
Bxe3 {[%clk 01:00:25]} {[%emt 00:01:58]} 16. Qxe3 {[%clk 00:38:58]} {[%emt
00:01:50]} O-O {[%clk 00:55:26]} {[%emt 00:05:28]} 17. Ne1 {[%clk 00:34:37]}
{[%emt 00:04:51]} Bd7 {[%clk 00:53:07]} {[%emt 00:02:49]} 18. f3 {[%clk
00:28:18]} {[%emt 00:06:50]} h5 {[%clk 00:45:48]} {[%emt 00:07:49]} 19. Nd3
{[%clk 00:26:24]} {[%emt 00:02:24]} h4 {[%clk 00:46:09]} {[%emt 00:00:09]} 20.
Qg5 {[%clk 00:21:20]} {[%emt 00:05:35]} Qc8 {[%clk 00:45:59]} {[%emt 00:00:39]}
21. Ra7 {[%clk 00:19:37]} {[%emt 00:02:14]} Ra8 {[%clk 00:40:27]} {[%emt
00:06:01]} 22. Rfa1 {[%clk 00:19:56]} {[%emt 00:00:11]} Rxa7 {[%clk 00:40:52]}
{[%emt 00:00:05]} 23. Rxa7 {[%clk 00:20:24]} {[%emt 00:00:02]} Qb8 {[%clk
00:40:12]} {[%emt 00:01:09]} 24. Qe3 {[%clk 00:19:33]} {[%emt 00:01:22]} Nh5
{[%clk 00:38:42]} {[%emt 00:01:59]} 25. Nf1 {[%clk 00:14:38]} {[%emt 00:05:26]}
Ngf4 {[%clk 00:38:07]} {[%emt 00:01:04]} 26. Nxf4 {[%clk 00:13:02]} {[%emt
00:02:06]} Nxf4 {[%clk 00:38:31]} {[%emt 00:00:05]} 27. Ra1 {[%clk 00:11:36]}
{[%emt 00:01:57]} Qd8 {[%clk 00:38:22]} {[%emt 00:00:38]} 28. g3 {[%clk
00:11:00]} {[%emt 00:01:06]} Qg5 {[%clk 00:31:59]} {[%emt 00:06:53]} 29. Kf2
{[%clk 00:11:04]} {[%emt 00:00:28]} hxg3+ {[%clk 00:31:51]} {[%emt 00:00:38]}
30. hxg3 {[%clk 00:11:33]} Nh3+ {[%clk 00:32:07]} {[%emt 00:00:13]} 31. Ke1
{[%clk 00:06:59]} {[%emt 00:05:05]} Qg6 {[%clk 00:26:44]} {[%emt 00:05:53]} 32.
Ra7 {[%clk 00:05:33]} {[%emt 00:01:56]} f5 {[%clk 00:22:11]} {[%emt 00:05:03]}
33. Rxc7 {[%clk 00:04:11]} {[%emt 00:01:52]} f4 {[%clk 00:18:28]} {[%emt
00:04:13]} 34. Qd2 {[%clk 00:03:41]} {[%emt 00:01:00]} fxg3 {[%clk 00:09:07]}
{[%emt 00:09:51]} 35. Qg2 {[%clk 00:04:11]} {[%emt 00:00:01]} Ng5 {[%clk
00:09:17]} {[%emt 00:00:19]} 36. Bd1 {[%clk 00:02:41]} {[%emt 00:02:00]} Nxf3+
{[%clk 00:06:16]} {[%emt 00:03:30]} 37. Bxf3 {[%clk 00:03:02]} {[%emt
00:00:09]} Rxf3 {[%clk 00:06:42]} {[%emt 00:00:05]} 38. Qxf3 {[%clk 00:02:06]}
{[%emt 00:01:27]} g2 {[%clk 00:07:06]} {[%emt 00:00:06]} 39. Rxd7 {[%clk
00:02:31]} {[%emt 00:00:05]} g1=Q {[%clk 00:07:31]} {[%emt 00:00:05]} 40. Rd8+
{[%clk 00:16:11]} {[%emt 00:01:50]} Kh7 {[%clk 00:22:55]} {[%emt 00:00:05]} 41.
Qh3+ {[%clk 00:09:27]} {[%emt 00:07:15]} Qh6 {[%clk 00:23:17]} {[%emt
00:00:08]} 42. Qxh6+ {[%clk 00:09:35]} {[%emt 00:00:23]} gxh6 {[%clk 00:23:05]}
{[%emt 00:00:42]} 43. Rxd6 {[%clk 00:09:55]} {[%emt 00:00:10]} Qh1 {[%clk
00:21:01]} {[%emt 00:02:32]} 44. Kf2 {[%clk 00:09:36]} {[%emt 00:00:50]} Qxe4
{[%clk 00:20:45]} {[%emt 00:00:46]} 45. Ne3 {[%clk 00:09:54]} {[%emt 00:00:13]}
Qf4+ {[%clk 00:20:45]} {[%emt 00:00:29]} 46. Ke2 {[%clk 00:10:22]} {[%emt
00:00:03]} e4 {[%clk 00:20:41]} {[%emt 00:00:33]} 47. Rd7+ {[%clk 00:10:46]}
{[%emt 00:00:07]} Kg6 {[%clk 00:20:52]} {[%emt 00:00:18]} 0-1